Cogmind - Beta 15 @@@ ROGUE MODE // 2025.09.23 @ 16:13:38 Player: Blue Result: Escaped! Performance ------------- Evolutions (9) 4500 Regions Visited (16) 3200 Robots Destroyed (119) 595 Value Destroyed (4747) 4747 Prototype IDs (62) 1240 Alien Tech Used (1) 200 Bonus (3398) 3398 TOTAL SCORE: 17880 Bonus ------- High Alert Combat Kills 98 Aligned with FarCom 300 Win 3000 Cogmind --------- Core Integrity 1090/1600 Matter 248/300 Energy 438/450 System Corruption 30% Temperature Cool (20) Movement Hovering (30) Location To Epsilon Eridani Parts ------- > --- POWER (3) -------- Micro Antimatter Reactor Micro Antimatter Reactor Improved Quantum Reactor > --- PROPULSION (9) --- Improved Antigrav System Improved Antigrav System (fused) Improved Antigrav System Improved Antigrav System Improved Antigrav System Cooled Linear Gravjet Cooled Linear Gravjet > --- UTILITY (10) ----- Advanced Heat Sink Advanced Heat Sink Large Storage Unit Gravity Neutralizer Advanced Visual Processing Unit Improved Hacking Suite Improved Hacking Suite Advanced System Shield Advanced System Shield Advanced System Shield > --- WEAPON (3) ------- Enhanced Nova Cannon Enhanced Nova Cannon Graviton Cannon (fused) > --- INVENTORY (15) --- Micro Antimatter Reactor Quantum Reactor Reinforced Quantum Reactor Advanced Heat Sink Advanced Transmission Jammer Advanced Phase Shifter Cloaking Device Layered Medium Armor Plating Graphene Brace Improved Hardlight Generator Enhanced Nova Cannon Enhanced Hardcell Cannon Smartbomb Launcher Power Sword Peak State ------------ > --- POWER ------------ Micro Antimatter Reactor Micro Antimatter Reactor Improved Quantum Reactor > --- PROPULSION ------- Improved Antigrav System Improved Antigrav System Improved Antigrav System Improved Antigrav System Improved Antigrav System Improved Antigrav System Improved Antigrav System Cooled Linear Gravjet Cooled Linear Gravjet > --- UTILITY ---------- Advanced Heat Sink Advanced Heat Sink Large Storage Unit Gravity Neutralizer Advanced Visual Processing Unit Advanced Transmission Jammer Graphene Brace Improved Hacking Suite Advanced System Shield Advanced System Shield > --- WEAPON ----------- Enhanced Nova Cannon Enhanced Nova Cannon Graviton Cannon > --- INVENTORY -------- Micro Antimatter Reactor Quantum Reactor Reinforced Quantum Reactor Improved Antigrav System Advanced Heat Sink Advanced Phase Shifter Cloaking Device Layered Medium Armor Plating Improved Hardlight Generator Improved Hacking Suite Advanced System Shield Heavy Gauss Cannon Enhanced Hardcell Cannon Smartbomb Launcher [Rating: 184] Favorites ----------- Power Enhanced Nuclear Core Engine Improved Ion Engine Power Core Enhanced Nuclear Core Reactor Micro Antimatter Reactor Propulsion Improved Antigrav System Treads Biometal Medium Treads Leg Myomer Leg Wheel Compact Wheel Hover Unit Improved Antigrav System Flight Unit Improved Flight Unit Utility System Shield Device Gravity Neutralizer Storage Large Storage Unit Processor Enhanced Optical Array Hackware System Shield Protection Layered Medium Armor Plating Weapon Greatsword Energy Gun Improved Medium Laser Energy Cannon Enhanced Nova Cannon Ballistic Gun Assault Rifle Ballistic Cannon Enhanced Hardcell Cannon Launcher Grenade Launcher Slashing Weapon Greatsword Build | -11 -10 -10 -10 -9 -8 -7 -6 -6 -6 -5 -5 -5 -4 -3 -2 -1 ------- Run | Yrd Mat Min Exi Min Mat Fac Fac Low Low Fac Upp Upp Fac Res Res Acc Slots Evolved 18 | . . . . . 4 2 2 . . 2 . . 2 2 2 2 Power 2 | . . . . . . 1 . . . . . . . . . 1 Propulsion 7 | . . . . . 2 . 1 . . 1 . . . 1 1 1 Utility 8 | . . . . . 2 1 1 . . 1 . . 1 1 1 . Weapon 1 | . . . . . . . . . . . . . 1 . . . Parts Attached 180 | 7 7 1 . 1 4 21 6 3 . 19 1 . 12 12 22 64 Power 29 | 1 1 . . 1 . 6 1 . . 2 . . 3 1 4 9 Engine 7 | 1 1 . . 1 . 3 . . . . . . 1 . . . Core 7 | . . . . . . 3 1 . . 2 . . 1 . . . Reactor 15 | . . . . . . . . . . . . . 1 1 4 9 Propulsion 65 | 2 5 . . . 1 6 . . . 7 . . 3 6 9 26 Treads 2 | . . . . . . . . . . . . . . . 2 . Leg 4 | . . . . . . . . . . . . . . . . 4 Wheel 7 | 2 . . . . . . . . . . . . . . . 5 Hover 18 | . . . . . . . . . . 2 . . . . . 16 Flight 34 | . 5 . . . 1 6 . . . 5 . . 3 6 7 1 Utility 58 | 2 . . . . 3 5 4 . . 9 1 . 4 3 4 23 Device 31 | 1 . . . . 1 3 . . . 5 1 . 2 2 2 14 Storage 4 | 1 . . . . 1 . . . . 1 . . . . 1 . Processor 8 | . . . . . 1 1 2 . . . . . 1 . 1 2 Hackware 14 | . . . . . . 1 2 . . 3 . . 1 1 . 6 Protection 1 | . . . . . . . . . . . . . . . . 1 Artifact . | . . . . . . . . . . . . . . . . . Weapon 28 | 2 1 1 . . . 4 1 3 . 1 . . 2 2 5 6 Energy Gun 2 | . 1 . . . . . . . . . . . . . 1 . Energy Cannon 9 | . . . . . . . 1 3 . . . . . . 1 4 Ballistic Gun 5 | 2 . . . . . 1 . . . . . . 1 1 . . Ballistic Cannon 7 | . . . . . . . . . . . . . 1 1 3 2 Launcher 3 | . . 1 . . . 1 . . . 1 . . . . . . Special Weapon . | . . . . . . . . . . . . . . . . . Impact Weapon . | . . . . . . . . . . . . . . . . . Slashing Weapon 2 | . . . . . . 2 . . . . . . . . . . Piercing Weapon . | . . . . . . . . . . . . . . . . . Special Melee Weapon . | . . . . . . . . . . . . . . . . . Unidentified Prototypes 19 | . 2 . . . . 6 1 . . 2 1 . 2 1 1 3 Parts Lost 43 | . . . . . . 2 1 2 . 1 . . . 4 10 23 Power 6 | . . . . . . . . . . . . . . 1 1 4 Propulsion 23 | . . . . . . 1 . 2 . 1 . . . 1 5 13 Utility 11 | . . . . . . 1 . . . . . . . 1 4 5 Weapon 3 | . . . . . . . 1 . . . . . . 1 . 1 Highest Loss Streak 9 | . . . . . . 2 1 1 . 1 . . . 3 3 9 To Critical Strikes . | . . . . . . . . . . . . . . . . . Average Backups 11 | 1 7 7 7 7 6 9 9 9 10 11 13 14 13 13 12 13 Power 2 | . . . . . . 1 2 2 2 1 1 1 1 2 2 3 Propulsion 1 | . 4 5 4 4 2 2 1 . . . 1 1 1 2 3 1 Utility 3 | . . . . 1 1 2 2 2 3 4 6 7 5 3 1 3 Weapon 4 | . 2 2 3 2 2 3 4 4 5 3 4 4 4 4 5 5 Tool/Special . | . . . . . . . . . . . . . . . . . Unused Backups 34 | . 3 . . . . 5 1 . . 5 . . 3 3 2 12 Power 5 | . . . . . . 1 . . . . . . . . 1 3 Propulsion 6 | . 2 . . . . 3 . . . . . . . . 1 . Utility 13 | . . . . . . . . . . 5 . . 3 2 . 3 Weapon 9 | . 1 . . . . 1 1 . . . . . . . . 6 Tool/Special 1 | . . . . . . . . . . . . . . 1 . . Average Slot Usage (%) 86 | . 72 74 71 73 78 85 92 88 80 92 94 94 86 86 78 91 Engine 4 | . 14 14 14 14 9 14 6 6 6 2 . . 1 . . . Core 2 | . . . . . . . 5 6 6 8 11 11 6 3 . . Reactor 3 | . . . . . . . . . . . . . 2 4 7 11 Leg 1 | . . . . . . . . . . . . . . . . 5 Hover 5 | . . . . . . . . . . 4 . . . . . 19 Flight 23 | . 27 28 28 28 35 29 33 31 26 28 35 35 28 27 26 4 Device 14 | . . . . . 7 21 14 10 6 13 11 11 13 14 19 18 Storage 6 | . 14 14 14 14 9 7 6 6 6 5 5 5 5 4 4 5 Processor 4 | . . . . . 1 2 10 6 6 5 5 5 9 8 2 4 Hackware 9 | . . . . . . . 6 13 13 13 17 17 11 13 11 11 Energy Cannon 1 | . . . . . . . . 2 . . . . . 1 . 6 Ballistic Gun 1 | . 14 14 14 14 9 . . . . . . . . . . . Slashing Weapon 3 | . . . . . . 6 6 3 6 4 5 5 4 3 2 . Peak Build Rating 184 | 7 12 11 11 12 24 48 58 60 48 89 86 86 108 132 161 184 Average Rating 91 | 5 9 10 10 11 19 37 57 51 48 75 85 86 94 116 139 162 On Entrance 51 | . 7 10 10 11 11 24 44 57 48 48 86 86 86 98 122 134 Naked Turns . | . . . . . . . . . . . . . . . . . Heaviest Build 102 | 15 15 10 10 13 19 30 35 44 30 60 49 49 60 78 96 102 Greatest Support 120 | 32 32 10 10 10 19 32 37 37 30 49 49 49 50 61 74 120 Greatest Overweight (x) 5 | . 2 . . 1 . 2 . 1 . 1 . . 1 1 5 4 Average Overweight (x) . | . . . . . . . . . . . . . . . . . Largest Inventory Capacity 15 | 8 8 8 8 8 10 10 10 10 10 15 15 15 15 15 15 15 Average Capacity 12 | 7 8 8 8 8 9 10 10 10 10 12 15 15 15 15 15 15 Most Carried 15 | 4 8 8 8 8 9 10 10 10 10 15 15 15 15 15 15 15 Average Carried 12 | 1 7 7 7 7 6 9 9 9 10 11 14 15 14 14 14 14 Final Capacity 15 | 8 8 8 8 8 10 10 10 10 10 15 15 15 15 15 15 15 Final Carried 15 | 4 8 8 8 8 9 10 10 10 10 14 15 15 15 13 13 15 Class Distribution -------------------- 46% | Hacker-Sprinter 11% | Scout 10% | Scavenger-Skirmisher 9% | Mutant 5% | Scavenger-Sprinter 4% | Hacker-Mutant 3% | Assassin 3% | Sprinter Dominant Class ---------------- Mutant | -10/Materials Mutant | -10/Mines Mutant | -10/Exiles Mutant | -9/Mines Scout | -8/Materials Scout | -7/Factory Sprinter | -6/Factory Hacker-Sprinter | -6/Lower Caves Hacker-Sprinter | -6/Lower Caves Hacker-Sprinter | -5/Factory Hacker-Sprinter | -5/Upper Caves Hacker-Sprinter | -5/Upper Caves Hacker-Sprinter | -4/Factory Hacker-Sprinter | -3/Research Hacker-Sprinter | -2/Research Scavenger-Skirmisher | -1/Access Resources | -11 -10 -10 -10 -9 -8 -7 -6 -6 -6 -5 -5 -5 -4 -3 -2 -1 ----------- Run | Yrd Mat Min Exi Min Mat Fac Fac Low Low Fac Upp Upp Fac Res Res Acc Matter Collected 4785 | 192 . 23 . 358 . 347 32 419 . 361 61 33 429 417 684 1429 Remotely . | . . . . . . . . . . . . . . . . . Salvage Created 5395 | 27 . 23 . . . 239 25 564 . 501 . 33 636 292 715 2340 Parts 264 | 4 . 3 . 1 . 18 3 22 . 26 . 1 23 5 31 127 Haulers Intercepted 3 | . . . . . . 2 . . . 1 . . . . . . Recyclers Shooed 5 | . . . . . . . . . . . . . 1 . 2 2 Parts Field Recycled . | . . . . . . . . . . . . . . . . . Retrieved Matter . | . . . . . . . . . . . . . . . . . Parts Self-Destructed 16 | . . . . . . . . 15 . . . 1 . . . . Prevented 5 | . . . . . . . . . 3 . . 2 . . . . Kills | -11 -10 -10 -10 -9 -8 -7 -6 -6 -6 -5 -5 -5 -4 -3 -2 -1 ------- Run | Yrd Mat Min Exi Min Mat Fac Fac Low Low Fac Upp Upp Fac Res Res Acc Combat Hostiles Destroyed 70 | . . 3 . . . 5 . 13 . 8 . . 3 6 7 25 Melee 1 | . . . . . . 1 . . . . . . . . . . Cannons 35 | . . . . . . . . 4 . 2 . . 2 1 7 19 AOE 27 | . . 3 . . . 4 . 9 . 5 . . . 3 . 3 Classes Destroyed 13 | 1 . 1 . 1 . 4 . 3 . 2 . . 1 . . . Worker 18 | . . . . 1 . 1 2 . . 4 . . 4 . . 6 Builder 1 | . . . . . . 1 . . . . . . . . . . Tunneler 3 | 1 . . . . . 1 . . . . . . . . . 1 Hauler 3 | . . . . . . 2 . . . 1 . . . . . . Recycler 7 | . . . . . . . . . . . . . 2 . 2 3 Operator 3 | . . . . . . . . . . 1 . . . . . 2 Watcher 14 | . . . . . . 2 . . . 3 . . 1 1 1 6 Swarmer 27 | . . 3 . . . 4 . 9 . 5 . . . 3 . 3 Grunt 1 | . . . . . . . . . . . . . . . . 1 Sentry 13 | . . . . . . . . . . 2 . . 3 3 2 3 Programmer 25 | . . . . . . 1 . . . 1 . . . . 5 18 Decomposer 7 | . . . . . . . . 5 . . . 2 . . . . Samaritan 3 | . . . . . . . . 3 . . . . . . . . Thug 1 | . . . . . . . . 1 . . . . . . . . Butcher 3 | . . . . . . . . 3 . . . . . . . . Best Kill Streak 8 | 1 . 3 . 1 . 8 2 4 . 5 . . 2 3 3 5 Combat Bots Only 5 | . . 3 . . . 4 . 4 . 5 . . 1 3 3 4 Max Kills in Single Turn 3 | 1 . 3 . 1 . 3 1 2 . 3 . 1 1 2 1 2 Gunslinging . | . . . . . . . . . . . . . . . . . Exploded 3 | . . 3 . . . 3 . 2 . 3 . . . 2 . 2 Melee 1 | . . . . . . 1 . . . . . . . . . . Uniques/NPCs Destroyed . | . . . . . . . . . . . . . . . . . Combat | -11 -10 -10 -10 -9 -8 -7 -6 -6 -6 -5 -5 -5 -4 -3 -2 -1 -------- Run | Yrd Mat Min Exi Min Mat Fac Fac Low Low Fac Upp Upp Fac Res Res Acc Hostile Shots Fired 512 | . . 3 . 12 . 29 46 19 . 17 . . 8 25 123 230 Missed 205 | . . 1 . 5 . 15 32 6 . 7 . . 2 7 59 71 Hits 307 | . . 2 . 7 . 14 14 13 . 10 . . 6 18 64 159 Melee 3 | . . . . 1 . . . 2 . . . . . . . . Projectile 304 | . . 2 . 6 . 14 14 11 . 10 . . 6 18 64 159 AOE 1 | . . . . . . 1 . . . . . . . . . . Critical Strikes 23 | . . . . . . 1 . 1 . . . . . . 5 16 Actively Blocked 21 | . . . . . . . . . . . . . . . 5 16 Part Disruptions 1 | . . . . . . . . . . . . . . . . 1 Damage Taken 7143 | . . 52 . 106 14 315 112 264 . 201 . . 152 517 1705 3705 Core 1055 | . . 12 . 28 14 102 10 19 . . . . 25 27 308 510 Absorbed by Shields 5 | . . . . . . 5 . . . . . . . . . . Regen/Repaired (Parts) 392 | . . . . . . 74 12 . . 217 . . 42 . . 47 Core Remaining (%) 90 | 100 . . . 84 97 85 . . 96 . . 100 97 97 78 68 Volleys Fired 306 | 1 3 1 . 13 13 3 . 22 . 8 . . 5 26 51 160 Largest 3 | 2 1 2 . 2 1 1 . 1 . 2 . . 3 3 3 3 Hottest 298 | 40 20 50 . 50 30 39 . 105 . 210 . . 265 265 283 298 Shots Fired 450 | 2 3 2 . 18 13 3 . 22 . 13 . . 12 42 74 246 Gun 25 | 2 3 1 . 5 12 . . . . . . . . 2 . . Cannon 392 | . . . . . . . . 16 . 10 . . 12 37 74 243 Launcher 33 | . . 1 . 13 1 3 . 6 . 3 . . . 3 . 3 Special . | . . . . . . . . . . . . . . . . . Kinetic 120 | 2 3 1 . 5 12 . . . . . . . 2 19 48 28 Thermal 297 | . . . . . . . . 16 . 10 . . 10 20 26 215 Explosive 33 | . . 1 . 13 1 3 . 6 . 3 . . . 3 . 3 Electromagnetic . | . . . . . . . . . . . . . . . . . Robot Hit Streak 20 | 1 2 4 . . 5 1 . 6 . 12 . . 14 10 20 12 Robot Miss Streak 4 | . 1 . . . 2 2 . 3 . . . . 1 2 2 4 Penetration Max . | . . . . . . . . . . . . . . . . . Secondary Targets . | . . . . . . . . . . . . . . . . . Shots Hit Robots 286 | 1 2 2 . . 8 13 2 25 . 24 . 2 19 26 40 122 Core Hits 151 | 1 1 3 . 2 1 19 2 17 . 17 . 1 9 11 14 53 Critical Kills 5 | . . . . . . . . . . . . . . 1 . 4 Critical Parts Destroyed . | . . . . . . . . . . . . . . . . . Critical Strikes 10 | . . . . . . . . . . . . . . 1 . 9 Meltdown 5 | . . . . . . . . . . . . . . 1 . 4 Blast 3 | . . . . . . . . . . . . . . . . 3 Sever 2 | . . . . . . . . . . . . . . . . 2 Melee Attacks 272 | . . . . . . 55 18 12 . 60 1 2 39 27 48 10 Impact . | . . . . . . . . . . . . . . . . . Slashing 272 | . . . . . . 55 18 12 . 60 1 2 39 27 48 10 Piercing . | . . . . . . . . . . . . . . . . . Sneak Attacks 34 | . . . . . . 2 2 10 . 6 . 2 6 1 3 2 Combat Hostiles . | . . . . . . . . . . . . . . . . . Follow-up Attacks . | . . . . . . . . . . . . . . . . . Damage Inflicted 18584 | 10 24 132 . 43 101 1381 212 2421 . 2282 . 221 1427 1604 1991 6735 Guns 147 | 10 24 12 . . 101 . . . . . . . . . . . Cannons 9941 | . . . . . . . . 520 . 547 . . 512 1104 1601 5657 Explosions 3108 | . . 120 . 43 . 552 . 783 . 705 . . . 331 . 574 Melee 5388 | . . . . . . 829 212 1118 . 1030 . 221 915 169 390 504 Ramming . | . . . . . . . . . . . . . . . . . Kinetic 2406 | 10 24 12 . . 101 . . . . . . . 31 355 913 960 Thermal 7682 | . . . . . . . . 520 . 547 . . 481 749 688 4697 Explosive 3108 | . . 120 . 43 . 552 . 783 . 705 . . . 331 . 574 Electromagnetic . | . . . . . . . . . . . . . . . . . Impact . | . . . . . . . . . . . . . . . . . Slashing 5388 | . . . . . . 829 212 1118 . 1030 . 221 915 169 390 504 Piercing . | . . . . . . . . . . . . . . . . . Highest Corruption 30 | . . . . . . 3 . . . 1 1 1 1 1 7 30 Average Corruption 10 | . . . . . . 1 . . . 1 1 1 1 1 2 23 Corruption Purged 7 | . . . . . . . . . . . . . . . . 7 Corruption Blocked . | . . . . . . . . . . . . . . . . . Effects 139 | . . . . . . 14 . . . 6 2 2 1 1 4 109 Message Errors 28 | . . . . . . 4 . . . 1 1 . 1 . . 21 Matter Fused 36 | . . . . . . 1 . . . 3 1 2 . 1 1 27 Heat Flow Errors 10 | . . . . . . 2 . . . . . . . . . 8 Energy Discharges 19 | . . . . . . 6 . . . 2 . . . . 2 9 Parts Rejected 2 | . . . . . . . . . . . . . . . 1 1 Parts Fused 2 | . . . . . . . . . . . . . . . . 2 Data Loss (minor) 15 | . . . . . . . . . . . . . . . . 15 Data Loss (major) 6 | . . . . . . 1 . . . . . . . . . 5 Misfires 4 | . . . . . . . . . . . . . . . . 4 Misdirections 8 | . . . . . . . . . . . . . . . . 8 Weapon Failures 9 | . . . . . . . . . . . . . . . . 9 Overload Shots 45 | . . . . . . . . 12 . 8 . . 8 14 1 2 Effects 3 | . . . . . . . . 2 . . . . . 1 . . Heat Surge 3 | . . . . . . . . 2 . . . . . 1 . . Overflow Damage 1984 | . . . . . . 136 . 692 . 143 . 106 221 34 246 406 Projectiles 534 | . . . . . . . . 24 . 17 . . 14 13 120 346 Explosions 151 | . . . . . . . . 85 . 6 . . . . . 60 Melee 1299 | . . . . . . 136 . 583 . 120 . 106 207 21 126 . Knockbacks 19 | . . . . . . . . . . . . . . . 7 12 Impact . | . . . . . . . . . . . . . . . . . Kinetic 16 | . . . . . . . . . . . . . . . 6 10 Secondary 3 | . . . . . . . . . . . . . . . 1 2 Self-Inflicted Damage 71 | . . 38 . 14 14 . . 5 . . . . . . . . Shots 5 | . . 1 . 2 1 . . 1 . . . . . . . . Rammed . | . . . . . . . . . . . . . . . . . Targets Rammed . | . . . . . . . . . . . . . . . . . Kicked . | . . . . . . . . . . . . . . . . . Crushed . | . . . . . . . . . . . . . . . . . Highest Temperature 418 | . 411 . . . . 108 115 301 . 150 . . 180 418 367 328 Average Temperature 82 | . 207 . . . . 53 41 83 . 71 . . 69 139 95 89 Received Heat Transfer 504 | . . . . 36 . 6 30 54 . 27 . . 27 81 144 99 Effects 8 | . 2 . . . . . . . . . . . . 4 1 1 Shutdowns 3 | . 1 . . . . . . . . . . . . 2 . . Energy Bleed 3 | . . . . . . . . . . . . . . 2 . 1 Short Circuit 2 | . 1 . . . . . . . . . . . . . 1 . Siege Activations . | . . . . . . . . . . . . . . . . . Martial Activations . | . . . . . . . . . . . . . . . . . Shielding Activations . | . . . . . . . . . . . . . . . . . Robots Disrupted . | . . . . . . . . . . . . . . . . . Combat Hostiles . | . . . . . . . . . . . . . . . . . Robots Corrupted . | . . . . . . . . . . . . . . . . . Combat Hostiles . | . . . . . . . . . . . . . . . . . Parts Fried . | . . . . . . . . . . . . . . . . . Impact Corruptions 2 | . . . . . . . . . . . . . . . 1 1 Robots Melted 8 | . . . . . . . . . . 1 . . 1 2 . 4 Combat Hostiles 7 | . . . . . . . . . . 1 . . 1 2 . 3 Parts Melted 34 | . . . . . . . . . . 4 . . 3 4 . 23 Heat Transferred 7757 | . . . . . . . . 680 . 660 . . 610 1000 624 4183 Parts Sabotaged . | . . . . . . . . . . . . . . . . . Parts Stolen . | . . . . . . . . . . . . . . . . . Parts Stripped . | . . . . . . . . . . . . . . . . . Power Chain Reactions . | . . . . . . . . . . . . . . . . . Alert | -11 -10 -10 -10 -9 -8 -7 -6 -6 -6 -5 -5 -5 -4 -3 -2 -1 ------- Run | Yrd Mat Min Exi Min Mat Fac Fac Low Low Fac Upp Upp Fac Res Res Acc Maximum Alert Level 2 | . . . . . . 1 . . . 1 . . . . 2 2 Low Security (%) 65 | 100 100 100 . 100 100 91 100 . . 60 . . 100 100 92 . Level 1 26 | . . . . . . 8 . . . 39 . . . . 2 71 Level 2 7 | . . . . . . . . . . . . . . . 4 28 Level 3 . | . . . . . . . . . . . . . . . . . Level 4 . | . . . . . . . . . . . . . . . . . Level 5 . | . . . . . . . . . . . . . . . . . High Security . | . . . . . . . . . . . . . . . . . Max Security . | . . . . . . . . . . . . . . . . . Peak Influence 568 | 5 . 77 . 145 65 234 60 . . 344 . . 55 120 504 568 Initial 300 | . . . . . 56 . 60 . . 100 . . 44 18 48 300 Average 161 | . . 70 . 75 20 129 12 . . 173 . . 22 45 76 375 Influence Increases 5667 | 5 . 77 . 255 32 674 113 270 45 1020 . . 304 319 1113 1440 Destroy 0b10 Robot/C 1320 | . . 60 . . . 100 . 180 . 160 . . 60 120 140 500 Destroy 0b10 Robot/NC 245 | 5 . . . 5 . 35 10 . . 45 . . 35 5 15 90 Destroy Leader 354 | . . 10 . . . 28 . 30 . 48 . . 32 42 42 122 Successful Hack 516 | . . . . . 23 89 13 . . 138 . . 33 14 113 93 Disable Machine 135 | . . . . . . . . . . 15 . . 15 60 30 15 Anti-Garrison Action 800 | . . . . . . 200 . . . 200 . . . . 200 200 Destroy Structure 917 | . . 7 . 25 9 57 15 . . 144 . . 54 78 228 300 Partial Spotted 270 | . . . . . . 30 60 . . 60 . . 60 . 15 45 Lose Combat Pursuer 1110 | . . . . 225 . 135 15 60 45 210 . . 15 . 330 75 Influence Decreases 5105 | 5 . 10 67 110 177 550 197 156 40 844 185 79 338 270 698 1379 Entered New Map 763 | . . . 67 . 89 . 64 15 30 59 125 29 27 19 38 201 Time Decay 3205 | 5 . 10 . 110 68 510 115 131 10 556 60 50 311 211 410 648 Lost Part 400 | . . . . . . 20 10 10 . 10 . . . 30 90 230 Lost Ally 68 | . . . . . 20 20 8 . . . . . . 10 10 . Purge Threat 669 | . . . . . . . . . . 219 . . . . 150 300 Squads Dispatched 57 | . 1 . . . 1 10 4 . . 9 . . 5 4 6 17 Investigation 16 | . . . . . . 4 2 . . 4 . . 2 . 2 2 Extermination 24 | . . . . . . 2 2 . . 3 . . 2 2 4 9 Reinforcement 13 | . 1 . . . 1 4 . . . 2 . . 1 2 . 2 Assault 1 | . . . . . . . . . . . . . . . . 1 Garrison 3 | . . . . . . . . . . . . . . . . 3 Intercept . | . . . . . . . . . . . . . . . . . Searches Triggered . | . . . . . . . . . . . . . . . . . Construction Impeded 2 | . . . . . . 1 . . . . . . . . . 1 Haulers Reinforced 2 | . . . . . . 1 . . . 1 . . . . . . Active Scanning Responses . | . . . . . . . . . . . . . . . . . Cargo Convoy Interrupts . | . . . . . . . . . . . . . . . . . Stealth | -11 -10 -10 -10 -9 -8 -7 -6 -6 -6 -5 -5 -5 -4 -3 -2 -1 --------- Run | Yrd Mat Min Exi Min Mat Fac Fac Low Low Fac Upp Upp Fac Res Res Acc Distress Signals 9 | . . . . . 1 3 . . . 2 . . . . 1 2 Communications Jammed 38 | . . . . . . . . . . . . . . . 31 7 Distress Signals 37 | . . . . . . . . . . . . . . . 30 7 Times Spotted 237 | . 3 3 . 24 5 23 9 21 2 32 . . 9 11 47 48 Peak Tracking Total 17 | . 2 3 . 17 4 6 6 4 4 9 . . 3 3 12 4 Tactical Retreats 42 | . . . . 9 . 6 1 3 1 5 . . 1 . 11 5 Traps | -11 -10 -10 -10 -9 -8 -7 -6 -6 -6 -5 -5 -5 -4 -3 -2 -1 ------- Run | Yrd Mat Min Exi Min Mat Fac Fac Low Low Fac Upp Upp Fac Res Res Acc Traps Triggered 8 | . . . . . . 3 . . . 2 . . . 2 1 . Indirectly . | . . . . . . . . . . . . . . . . . Trap Hack Attempts . | . . . . . . . . . . . . . . . . . Triggered . | . . . . . . . . . . . . . . . . . Disarmed . | . . . . . . . . . . . . . . . . . Reprogrammed . | . . . . . . . . . . . . . . . . . Reused . | . . . . . . . . . . . . . . . . . Traps Extracted . | . . . . . . . . . . . . . . . . . Installed . | . . . . . . . . . . . . . . . . . Triggered . | . . . . . . . . . . . . . . . . . Machines | -11 -10 -10 -10 -9 -8 -7 -6 -6 -6 -5 -5 -5 -4 -3 -2 -1 ---------- Run | Yrd Mat Min Exi Min Mat Fac Fac Low Low Fac Upp Upp Fac Res Res Acc Machines Disabled 11 | . . . . . . . . 1 . 1 1 . 1 4 2 1 Max in Single Turn 2 | . . . . . . . . 1 . 1 1 . 1 2 1 1 Garrison Access 11 | . . . . . . 3 1 . . 3 . . 1 1 1 1 Machines Repaired . | . . . . . . . . . . . . . . . . . Machines Dismantled . | . . . . . . . . . . . . . . . . . Machines Sabotaged . | . . . . . . . . . . . . . . . . . Overloaded Fab Kills . | . . . . . . . . . . . . . . . . . Hacking | -11 -10 -10 -10 -9 -8 -7 -6 -6 -6 -5 -5 -5 -4 -3 -2 -1 --------- Run | Yrd Mat Min Exi Min Mat Fac Fac Low Low Fac Upp Upp Fac Res Res Acc Machines Accessed 107 | . 1 . 1 . 7 22 8 . . 23 2 1 11 7 11 13 Terminals 59 | . 1 . . . 4 13 3 . . 12 . . 5 5 7 9 Fabricators 7 | . . . . . . . 2 . . 2 . . 2 . . 1 Repair Stations 7 | . . . . . . 2 1 . . 2 . . 1 . . 1 Recycling Units 3 | . . . . . 1 . 1 . . 1 . . . . . . Scanalyzers 13 | . . . . . 1 4 . . . 3 . . 1 1 3 . Garrison Access 14 | . . . . . 1 3 1 . . 3 . . 2 1 1 2 Total Hacks 356 | . 2 . 1 . 21 67 26 . . 77 2 1 34 31 54 40 Successful 200 | . 1 . 1 . 10 39 18 . . 54 2 1 20 11 27 16 Failed 156 | . 1 . . . 11 28 8 . . 23 . . 14 20 27 24 Catastrophic 24 | . . . . . 3 3 . . . 1 . . 2 1 7 7 Database Lockouts . | . . . . . . . . . . . . . . . . . Manual 141 | . . . 1 . 5 27 11 . . 28 . . 10 15 23 21 Terminals 225 | . 2 . . . 16 40 14 . . 38 . . 17 27 41 30 Fabricators 15 | . . . . . . . 5 . . 4 . . 4 . . 2 Repair Stations 27 | . . . . . . 9 2 . . 7 . . 6 . . 3 Recycling Units 6 | . . . . . 2 . 2 . . 2 . . . . . . Scanalyzers 54 | . . . . . 2 14 . . . 20 . . 4 3 11 . Garrison Access 25 | . . . . . 1 4 3 . . 6 . . 3 1 2 5 Terminal Hacks 67 | . 1 . 1 . 6 8 6 . . 12 2 1 5 4 14 7 Record 12 | . . . . . 1 2 . . . 4 1 . 2 1 . 1 Part Schematic 2 | . . . . . . . 2 . . . . . . . . . Robot Analysis 1 | . . . . . 1 . . . . . . . . . . . Prototype ID Bank 10 | . 1 . . . 1 2 1 . . 1 . . 1 . 3 . Open Door 3 | . . . . . . . . . . . 1 1 . . . 1 Open DSF 1 | . . . . . . . . . . . . . 1 . . . Level Access Points 3 | . . . . . . 1 . . . . . . . 1 1 . Branch Access Points 1 | . . . . . . . . . . . . . . . . 1 Terminal Index 4 | . . . . . . . 1 . . 1 . . . 1 1 . Fabricator Index 2 | . . . . . . . . . . 1 . . . . 1 . Repair Station Index 1 | . . . . . . 1 . . . . . . . . . . Scanalyzer Index 1 | . . . . . . 1 . . . . . . . . . . Alert Level 9 | . . . . . . 1 . . . 2 . . . 1 3 2 Unreport Threat 5 | . . . . . . . . . . 2 . . . . 1 2 Maintenance Status 1 | . . . . . 1 . . . . . . . . . . . Reinforcement Status 1 | . . . . . . . . . . . . . . . 1 . Recall Investigation 2 | . . . . . . . . . . 1 . . 1 . . . Hauler Manifests 1 | . . . . . . . . . . . . . . . 1 . Registered Prototypes 1 | . . . . . 1 . . . . . . . . . . . Zone Layout 5 | . . . . . 1 . 2 . . . . . . . 2 . Proto ID Catalog 1 | . . . 1 . . . . . . . . . . . . . Fabricator Hacks 9 | . . . . . . . 4 . . 2 . . 3 . . . Network Status 1 | . . . . . . . . . . . . . 1 . . . Load Schematic 4 | . . . . . . . 2 . . 1 . . 1 . . . Build 4 | . . . . . . . 2 . . 1 . . 1 . . . Repair Station Hacks 21 | . . . . . . 7 2 . . 6 . . 4 . . 2 Scan Component 11 | . . . . . . 4 1 . . 3 . . 2 . . 1 Repair 10 | . . . . . . 3 1 . . 3 . . 2 . . 1 Recycling Unit Hacks 3 | . . . . . 1 . 1 . . 1 . . . . . . Report Inventory 1 | . . . . . . . 1 . . . . . . . . . Retrieve Matter 1 | . . . . . . . . . . 1 . . . . . . Retrieve Components 1 | . . . . . 1 . . . . . . . . . . . Scanalyzer 45 | . . . . . 2 13 . . . 20 . . 3 1 6 . Insert Component 20 | . . . . . 1 5 . . . 9 . . 1 1 3 . Analyze 25 | . . . . . 1 8 . . . 11 . . 2 . 3 . Garrison Access Hacks 7 | . . . . . . 2 1 . . 2 . . 1 1 . . Seal Access 7 | . . . . . . 2 1 . . 2 . . 1 1 . . Unauthorized Hacks 47 | . . . . . 1 9 4 . . 10 . . 4 5 7 7 Terminals 43 | . . . . . 1 8 4 . . 9 . . 4 5 6 6 Assimilate 8 | . . . . . 1 2 1 . . . . . . 1 3 . Botnet 34 | . . . . . . 6 3 . . 9 . . 4 3 3 6 Disrupt 1 | . . . . . . . . . . . . . . 1 . . Fabricators . | . . . . . . . . . . . . . . . . . Repair Stations . | . . . . . . . . . . . . . . . . . Recycling Units . | . . . . . . . . . . . . . . . . . Scanalyzers . | . . . . . . . . . . . . . . . . . Garrison Access 4 | . . . . . . 1 . . . 1 . . . . 1 1 Jam 4 | . . . . . . 1 . . . 1 . . . . 1 1 Data Cores Recovered 1 | . . . . . . . . . . . . . . . . 1 Used . | . . . . . . . . . . . . . . . . . Hacking Detections 86 | . 1 . . . 6 16 8 . . 19 . . 8 6 10 12 Full Trace Events 10 | . . . . . . 1 2 . . 3 . . 2 . 1 1 Feedback Events 3 | . . . . . . 1 . . . . . . 1 . 1 . Corruption 3 | . . . . . . 1 . . . . . . 1 . 1 . Feedback Blocked . | . . . . . . . . . . . . . . . . . Robot Schematics Acquired . | . . . . . . . . . . . . . . . . . Robots Built . | . . . . . . . . . . . . . . . . . Authchips . | . . . . . . . . . . . . . . . . . Time . | . . . . . . . . . . . . . . . . . Total Robot Build Rating . | . . . . . . . . . . . . . . . . . Part Schematics Acquired 18 | . . . . . 1 5 2 . . 7 . . 1 . 2 . Parts Built 5 | . . . . . . . 2 . . 2 . . 1 . . . Authchips . | . . . . . . . . . . . . . . . . . Time 176 | . . . . . . . 67 . . 42 . . 67 . . . Total Part Build Rating 20 | . . . . . . . 8 . . 8 . . 4 . . . Parts Repaired 10 | . . . . . . 3 1 . . 3 . . 2 . . 1 Time 295 | . . . . . . 96 44 . . 84 . . 47 . . 24 Parts Recycled . | . . . . . . . . . . . . . . . . . Recycled Matter . | . . . . . . . . . . . . . . . . . Retrieved Matter . | . . . . . . . . . . . . . . . . . Retrieved Components . | . . . . . . . . . . . . . . . . . Parts Scanalyzed 16 | . . . . . 1 5 . . . 7 . . 1 1 1 . Part Schematics Acquired 16 | . . . . . 1 5 . . . 7 . . 1 . 2 . Parts Damaged 3 | . . . . . . . . . . 1 . . 1 1 . . Bothacking | -11 -10 -10 -10 -9 -8 -7 -6 -6 -6 -5 -5 -5 -4 -3 -2 -1 ------------ Run | Yrd Mat Min Exi Min Mat Fac Fac Low Low Fac Upp Upp Fac Res Res Acc Used RIF Installer . | . . . . . . . . . . . . . . . . . Robots Hacked . | . . . . . . . . . . . . . . . . . Non-combat . | . . . . . . . . . . . . . . . . . Combat . | . . . . . . . . . . . . . . . . . Robot Hacks Applied . | . . . . . . . . . . . . . . . . . Relay Couplers Released 6 | . . . . . . 3 . . . . . . . . . 3 Programmers 6 | . . . . . . 3 . . . . . . . . . 3 Fabnet Peak Effective % . | . . . . . . . . . . . . . . . . . Robots Rewired . | . . . . . . . . . . . . . . . . . Allies Hacked . | . . . . . . . . . . . . . . . . . Hacks Repelled . | . . . . . . . . . . . . . . . . . Allies | -11 -10 -10 -10 -9 -8 -7 -6 -6 -6 -5 -5 -5 -4 -3 -2 -1 -------- Run | Yrd Mat Min Exi Min Mat Fac Fac Low Low Fac Upp Upp Fac Res Res Acc Total Allies 8 | . . . . 1 1 1 1 . . . . . . 1 3 . Largest Group 1 | . . . . 1 1 1 1 . . . . . . 1 1 . Highest-Rated Group 45 | . . . . 31 31 10 10 . . . . . . 23 45 . Highest-Rated Ally 45 | . . . . 31 31 10 10 . . . . . . 23 45 . Total Orders 2 | . . . . . . . 2 . . . . . . . . . STAY 1 | . . . . . . . 1 . . . . . . . . . FOLLOW 1 | . . . . . . . 1 . . . . . . . . . Ally Attacks 3 | . . . . . 3 . . . . . . . . . . . Total Damage 42 | . . . . . 42 . . . . . . . . . . . Kills . | . . . . . . . . . . . . . . . . . Allies Corrupted . | . . . . . . . . . . . . . . . . . Allies Melted 1 | . . . . . 1 . . . . . . . . . . . Intel | -11 -10 -10 -10 -9 -8 -7 -6 -6 -6 -5 -5 -5 -4 -3 -2 -1 ------- Run | Yrd Mat Min Exi Min Mat Fac Fac Low Low Fac Upp Upp Fac Res Res Acc Active Infowar (turns) 8728 | 7 9 . . . 138 1289 375 568 29 1622 135 111 756 595 903 2191 Optics 6204 | . . . . . . . 375 568 29 1622 135 111 756 595 440 1573 Terrain 1427 | . . . . . 138 1289 . . . . . . . . . . Seismic 16 | 7 9 . . . . . . . . . . . . . . . Decoding 1263 | . . . . . . . . . . . . . 754 509 . . Cloaking 1385 | . . . . . . . . . . . . . 30 92 592 671 Jamming 1144 | . . . . . . . . . . . . . 38 95 349 662 Robot Analysis Total 1 | . . . . . 1 . . . . . . . . . . . Derelict Logs Recovered 4 | . . . . 1 . . . 1 1 . 1 . . . . . Drone Launches . | . . . . . . . . . . . . . . . . . Drone Recoveries . | . . . . . . . . . . . . . . . . . Decoded 0b10 Intel 34 | . . . . . . . . . . . . . 21 13 . . Traps 6 | . . . . . . . . . . . . . 4 2 . . Emergency Access 1 | . . . . . . . . . . . . . . 1 . . Items 21 | . . . . . . . . . . . . . 13 8 . . Machines 2 | . . . . . . . . . . . . . 1 1 . . Patrols 1 | . . . . . . . . . . . . . . 1 . . Guards 3 | . . . . . . . . . . . . . 3 . . . Exploration | -11 -10 -10 -10 -9 -8 -7 -6 -6 -6 -5 -5 -5 -4 -3 -2 -1 ------------- Run | Yrd Mat Min Exi Min Mat Fac Fac Low Low Fac Upp Upp Fac Res Res Acc Turns Passed 10414 | 67 545 36 91 255 161 1594 382 568 29 1622 135 111 756 595 1102 2365 Spaces Moved 17511 | 52 132 85 238 439 362 2883 881 1069 91 3512 486 418 1430 910 1704 2819 Core 31 | 3 . . . . . 1 . . . . . . . . 26 1 Treads 1 | . . . . . . . . . . . . . . . 1 . Legs 78 | . . . . . . . . . . . . . . . . 78 Wheels 164 | 49 5 . . . . . . . . . . . . . . 110 Hover 1740 | . . . . . . . . . . . . . . . . 1740 Flight 15497 | . 127 85 238 439 362 2882 881 1069 91 3512 486 418 1430 910 1677 890 Fastest Speed 22 | 50 37 37 37 37 29 28 27 26 28 24 25 25 24 23 22 27 Average Speed 33 | 97 44 37 37 38 29 31 27 35 28 26 25 25 26 25 30 52 Slowest Speed 300 | 100 180 37 37 107 29 150 27 100 28 102 25 25 102 105 300 280 Overloaded Moves . | . . . . . . . . . . . . . . . . . Propulsion Burnouts . | . . . . . . . . . . . . . . . . . Robots Hopped 44 | . 2 . . . 3 5 . . . 16 . . 6 4 2 6 Potential Cave-ins 9 | . . . . 4 . . . . . . . . . . . 5 Cave-ins Triggered . | . . . . . . . . . . . . . . . . . Exploration Rate (%) 44 | 3 26 21 61 60 37 73 27 96 15 65 63 42 40 27 39 60 Regions Visited 16 Branch Regions 7 Pre-discovered Areas 1 | . . . . . . . . . 1 . . . . . . . Known Exits Taken 4 | . . . . . . 1 . . . 1 . . . 1 1 . Unknown Exits Taken 12 | 1 1 1 1 1 1 . 1 1 1 . 1 1 1 . . . Scrap Searched 11 | . . . . 3 . . . 7 . . 1 . . . . . Spaces Dug 340 | . . . . 72 8 38 15 1 . 44 . . 25 24 61 52 Terrain Destroyed 614 | . . 7 . 97 8 56 15 91 . 84 . . 26 39 74 117 Melee 180 | . . . . . . 38 15 1 . 44 . . 25 18 39 . Projectile 151 | . . . . . . . . 5 . 1 . . 1 11 35 98 AOE 283 | . . 7 . 97 8 18 . 85 . 39 . . . 10 . 19 Terrain Rammed . | . . . . . . . . . . . . . . . . . Walls Destroyed . | . . . . . . . . . . . . . . . . . Machines Disabled . | . . . . . . . . . . . . . . . . . Actions | -11 -10 -10 -10 -9 -8 -7 -6 -6 -6 -5 -5 -5 -4 -3 -2 -1 --------- Run | Yrd Mat Min Exi Min Mat Fac Fac Low Low Fac Upp Upp Fac Res Res Acc Total 21106 | 63 611 87 241 506 399 3453 986 1210 93 4065 496 419 1719 1187 2116 3455 Wait 2389 | . 458 . . 49 18 419 71 81 3 405 6 . 192 151 217 319 Move 17412 | 51 127 84 237 438 356 2873 880 1068 90 3481 485 417 1417 902 1699 2807 Hop 38 | . 2 . . . 2 4 . . . 14 . . 6 3 2 5 Pick Up 116 | 4 5 . 2 . 4 17 4 2 . 19 1 . 9 13 13 23 Fast Attach 91 | 7 . . . . 2 9 3 5 . 12 1 . 5 7 9 31 Attach 105 | . . 1 . 2 3 8 2 7 . 16 1 . 11 19 21 14 Detach 75 | . 2 1 . 2 . 4 1 6 . 13 1 . 9 13 14 9 Swap 117 | . 9 . . 1 1 20 4 . . 11 . . 13 10 9 39 Drop 149 | . 5 . 2 1 . 23 3 7 . 26 . . 13 16 15 38 Fire 306 | 1 3 1 . 13 13 3 . 22 . 8 . . 5 26 51 160 Melee 272 | . . . . . . 55 18 12 . 60 1 2 39 27 48 10 Ram . | . . . . . . . . . . . . . . . . . Kick . | . . . . . . . . . . . . . . . . . Crush . | . . . . . . . . . . . . . . . . . Escape Stasis 36 | . . . . . . 18 . . . . . . . . 18 . Rewire . | . . . . . . . . . . . . . . . . . Trap . | . . . . . . . . . . . . . . . . . Miscellaneous . | . . . . . . . . . . . . . . . . . Route ------- -11/Scrapyard -10/Materials -10/Mines (discovered 2 exits: [*Mat] / *Exi) -10/Exiles (discovered 2 exits: [*Min x2]) -9/Mines -8/Materials (discovered 2 exits: *Fac / [*Sto]) -7/Factory (discovered 4 exits: *Fac x4) -6/Factory -6/Lower Caves -6/Lower Caves -5/Factory (discovered 2 exits: *Upp x2) -5/Upper Caves -5/Upper Caves -4/Factory -3/Research (discovered 3 exits: *Res x3) -2/Research (discovered 3 exits: *Acc x3) -1/Access (discovered 2 exits: [*Sur] / Com) To Epsilon Eridani History --------- Turn | Location | Event 4 | -11/Scrapyard | Discovered new exit (range 16) 68 | -11/Scrapyard | Entered Materials 306 | -10/Materials | Build established: Mutant 611 | -10/Materials | Discovered new exit (range 6) 613 | -10/Materials | Entered Mines 623 | -10/Mines | Deemed a non-threat by the Exiles lab entrance 623 | -10/Mines | Discovered new exit (range 5) 630 | -10/Mines | Discovered new exit (range 10) 649 | -10/Mines | Entered Exiles 654 | -10/Exiles | Discovered new exit (range 15) 659 | -10/Exiles | Met 8R-AWN 665 | -10/Exiles | Met EX-HEX 675 | -10/Exiles | Met EX-BIN 681 | -10/Exiles | Aligned with FarCom system 682 | -10/Exiles | Given EX-Vault access code 691 | -10/Exiles | Opened EX-Vault 695 | -10/Exiles | Found Gui. Plasma Cannon 704 | -10/Exiles | Warned to stay clear of 0b10 Research branches 714 | -10/Exiles | Met EX-DEC 737 | -10/Exiles | Discovered new exit (range 10) 740 | -10/Exiles | Left Exiles lab with Gui. Plasma Cannon 740 | -10/Exiles | Entered Mines 818 | -9/Mines | Assembled infested the area 823 | -9/Mines | Assisted by a Guerilla fighting off Assembled 973 | -9/Mines | Learned Materials trap positions 980 | -9/Mines | Received a Mining Laser from a helpful Derelict 983 | -9/Mines | Discovered new exit (range 9) 995 | -9/Mines | Entered Materials 995 | -8/Materials | Accompanied by 1 ally 995 | -8/Materials | Evolved 4 slots: Propulsion x2, Utility x2 996 | -8/Materials | Loaded intel: 15 trap records 1011 | -8/Materials | Discovered new exit (range 13) 1147 | -8/Materials | Discovered new exit (range 4) 1156 | -8/Materials | Entered Factory 1156 | -7/Factory | Accompanied by 1 ally 1156 | -7/Factory | Evolved 2 slots: Power x1, Utility x1 1304 | -7/Factory | Build established: Scout 1961 | -7/Factory | Discovered new exit (range 2) 2201 | -7/Factory | Identified exit to Factory 2242 | -7/Factory | Repaired Adv. Weight Redist. System 2270 | -7/Factory | Repaired Lgt. Ion Engine 2303 | -7/Factory | Repaired Imp. Ion Engine 2750 | -7/Factory | Entered another Factory area 2750 | -6/Factory | Evolved 2 slots: Propulsion x1, Utility x1 2886 | -6/Factory | Repaired Hvy. Rocket Launcher 2918 | -6/Factory | Build established: Sprinter 3002 | -6/Factory | Spotted B-75 Beast 3098 | -6/Factory | Discovered new exit (range 3) 3123 | -6/Factory | Fabricated Xenon Bombardment Thruster? 3132 | -6/Factory | Entered Lower Caves 3407 | -6/Lower Caves | Attacked by a faux Warlord 3687 | -6/Lower Caves | Attacked by a delusional Derelict stockpiling parts 3692 | -6/Lower Caves | Discovered new exit (range 5) 3700 | -6/Lower Caves | Entered another Lower Caves area 3713 | -6/Lower Caves | Discovered new exit (range 7) 3724 | -6/Lower Caves | Build established: Hacker-Sprinter 3729 | -6/Lower Caves | Entered Factory 3729 | -5/Factory | Evolved 2 slots: Propulsion x1, Utility x1 3730 | -5/Factory | Identified exit to Upper Caves 3814 | -5/Factory | Spotted B-75 Beast 4379 | -5/Factory | Repaired Greatsword 4443 | -5/Factory | Discovered exit to Upper Caves (range 22) 4590 | -5/Factory | Repaired Imp. Cesium-ion Thruster 4627 | -5/Factory | Repaired Enh. Nuclear Core 4747 | -5/Factory | Fabricated Xenon Bombardment Thruster? 5351 | -5/Factory | Entered Upper Caves 5382 | -5/Upper Caves | Found Alien Artifact 5382 | -5/Upper Caves | Identified Dimensional Node Initializer 5382 | -5/Upper Caves | Initialized slip node 5406 | -5/Upper Caves | Encountered a Warlord checkpoint 5450 | -5/Upper Caves | Discovered new exit (range 21) 5457 | -5/Upper Caves | Learned Factory emergency access door positions 5486 | -5/Upper Caves | Entered another Upper Caves area 5494 | -5/Upper Caves | Discovered new exit (range 11) 5597 | -5/Upper Caves | Entered Factory 5597 | -4/Factory | Evolved 2 slots: Utility x1, Weapon x1 5852 | -4/Factory | Fabricated Imp. Cesium-ion Thruster? 6095 | -4/Factory | Spotted B-86 Titan 6264 | -4/Factory | Repaired Nuclear Pulse Thruster? 6294 | -4/Factory | Repaired Xenon Bombardment Thruster 6318 | -4/Factory | Discovered new exit (range 5) 6353 | -4/Factory | Entered Research 6353 | -3/Research | Evolved 2 slots: Propulsion x1, Utility x1 6417 | -3/Research | Identified exit to Research 6656 | -3/Research | Found Prototype Processor 6656 | -3/Research | Identified Exp. Signal Interpreter 6923 | -3/Research | Lost 3 parts (1p1n1w) 6948 | -3/Research | Entered another Research area 6948 | -2/Research | Evolved 2 slots: Propulsion x1, Utility x1 7624 | -2/Research | Identified exit to Access 7705 | -2/Research | Lost 3 parts (2n1u) 7948 | -2/Research | Spotted B-90 Cyclops 8004 | -2/Research | Lost 3 parts (2n1u) 8050 | -2/Research | Entered Access 8050 | -1/Access | Evolved 2 slots: Power x1, Propulsion x1 8526 | -1/Access | System corruption reached 10% 8562 | -1/Access | Lost 9 parts (2p6n1u) 8797 | -1/Access | Lost 7 parts (1p3n2u1w) 8858 | -1/Access | Garrison activated, responded to threat 9028 | -1/Access | Build established: Scavenger-Skirmisher 9492 | -1/Access | System corruption reached 30% 9531 | -1/Access | Lost 3 parts (1p1n1u) 9901 | -1/Access | Repaired Enh. Nova Cannon 9974 | -1/Access | Spotted B-99 Colossus 10050 | -1/Access | First assault squad dispatched 10118 | -1/Access | Build established: Scavenger-Sprinter 10182 | -1/Access | Identified exit to Command 10414 | -1/Access | Discovered new exit (range 5) 10415 | *** | Escaped! Last Messages --------------- 10286_ Acquired Power Sword. 10290_ System corrupted: Matter fused (-10). 10290_ Acquired 7 matter. 10295_ ALERT: Potential suspicious activity detected, Programmers report to Access Zone 2E. 10319_ System corrupted: Component data lost. 10352_ System corrupted: Matter fused (-10). 10368_ System corrupted: Energy discharge (-153). 10391_ System corrupted: Matter fused (-9). 10407_ System corrupted: Matter fused (-10). 10410_ Connecting with Terminal... >>Open(Door) Sealed Barrier opened. 10414_ The Access Shell folds into the floor. 10414_ EXIT=FOUND [Achievement: This Is Interesting...] [Achievement: Epsilon Run] Map ----- +----------------------------------------------------+ | # #??????????????????????????????????? | | # #??????????????????????????????????? | | # "" #??????????????????????????????????? | | # "" #??????????????????????????????????? | | # """""" #??????????????????????????????????? | | # """""" #??????????????????????????????????? | | #" "" #??????????????????????????????????? | | ## "" #??????????????????????????????????? | | ## #??????????????????????????????????? | | ## #??????????????????????????????????? | | ########+###############################?????????? | | #???# ???????? | | #???# u k ????????? | | #???# ##########"### ""#?????????????????? | | #???# # " ##?# ""#?????????????????? | | #???# # """ #??# ""#?????????????????? | | ##### # """ #??# T#?????????????????? | | # " #??# ""#?????????????????? | | # #??# ""#?????????????????? | | # #?## ""##????????????????? | | # #?# #????????????????? | | # #?## ##????????????????? | | # #??# #?????????????????? | | # #??# #?????????????????? | | # #??# #?????????????????? | | """" ###+##+####??# @" #?????????????????? | | """" #?????# "" #?????????????????? | | """" #?????# #?????????????????? | | """" #?????# #?????????p???????? | | """" #?????# #?????????????????? | | """" #?????#""""""""""#?????????????????? | | #??????????????????????????????????? | | #??????????????????????????????????? | | #??????????????????????????????????? | | ####??????????????????????????????????? | | #########+########????BB????BB???????????????????? | | ######## #????BB????BB???????????????????? | | # #???????????????????????????????? | | # ] #???????????????????????????????? | | " # #???????????????????????????????? | | """ # #???????????????????????????????? | | """ ###########???????????????????????????????? | | " #?????????????????????????????????????????? | | ! #?????????????????????????????????????????? | | #?????????????????????????????????????????? | | "#######?????????????????????????????????????????? | | ##??????????????????????????????????????????????? | | #??????????????????????????????????????????????? | | "##??????????????????????????????????????????????? | | #??????????????????????????????????????????????? | +----------------------------------------------------+ Best States ------------- Heat Dissipation 109 Energy Generation 57 Energy Capacity 1300 Matter Stores 400 Matter Capacity 400 Sight Range 22 Terrain Scan Range 16 Terrain Scan Density 10 Jamming Range 16 Cloak Strength 3 Additional Mass Support 12 Armor Coverage 225 Evasion (%) 76 Launcher Accuracy 20 Target Analysis 8 Core Analysis 6 Recoil Reduction 2 Offensive Hacking 26 Defensive Hacking 34 Trap Extractor Capacity 6 Item Schematics ----------------- Sml. Storage Unit | -8/Materials | Scanalyzed Lrg. Storage Unit | -7/Factory | Scanalyzed Imp. Ion Engine | -7/Factory | Scanalyzed Hvy. Rocket Launcher | -7/Factory | Scanalyzed Xenon Bombardment Thruster | -7/Factory | Scanalyzed Adv. Weight Redist. System | -7/Factory | Scanalyzed Lgt. Fission Core | -6/Factory | Hacked Hcp. Storage Unit | -6/Factory | Hacked Imp. Cooling System | -5/Factory | Scanalyzed Gravity Neutralizer | -5/Factory | Scanalyzed Cld. Plasma Cannon | -5/Factory | Scanalyzed Adv. Shield Generator | -5/Factory | Scanalyzed Imp. Cesium-ion Thruster | -5/Factory | Scanalyzed Smartbomb Launcher | -5/Factory | Scanalyzed Enh. Nuclear Core | -5/Factory | Scanalyzed Adv. Cooling System | -4/Factory | Scanalyzed Impulse Thruster | -2/Research | Scanalyzed Enh. Nova Cannon | -2/Research | Scanalyzed Robot Schematics ------------------ None Fabricated ------------ Xenon Bombardment Thruster | x2 | -6/Factory Xenon Bombardment Thruster | x2 | -5/Factory Imp. Cesium-ion Thruster | x1 | -4/Factory Repaired ---------- Adv. Weight Redist. System | 20% | -7/Factory Lgt. Ion Engine | 32% | -7/Factory Imp. Ion Engine | 60% | -7/Factory Hvy. Rocket Launcher | 85% | -6/Factory Greatsword | 11% | -5/Factory Imp. Cesium-ion Thruster | 41% | -5/Factory Enh. Nuclear Core | 51% | -5/Factory Nuclear Pulse Thruster | 20% | -4/Factory Xenon Bombardment Thruster | 40% | -4/Factory Enh. Nova Cannon | 70% | -1/Access Alien Tech Used ----------------- Dimensional Node Initializer Achievements -------------- Alien Tech Dodgeball, But With Guns Epsilon Run This Is Interesting... Challenges ------------ None Game ------ Seed ServoEfficiencyExtractor Manual? 0 Play Time 07:00:46 Cumulative 72.5 hours Start 2025.09.23 @ 08:25:58 End 2025.09.23 @ 16:13:38 Sessions 1 Manual Loads 0 Difficulty Rogue Special Mode None Game No. 46 Rogue 46 Adventurer 0 Explorer 0 Win Type 0 Total 1 Types 1/0/0/0/0/0/0/0/0/0 Lore% 25 Gallery% 40 Achievement% 38 Wizard Run 0 Options --------- Layout 1 ASCII 0 Keyboard 1 Movement Arrows Keybinds 0 Fullscreen 1 Font 24/Smallcaps Map View 50x35 Zoom Use 0% Tactical HUD 1 Map Filters NONE Filters NONE Steam 1 RUN: c5d0863b-e0db-4077-bfd4-32d98c3d4e90